[Event "FIDE WCCC G10 2018"]
[Site "Santiago de Compostela"]
[Date "2018.11.10"]
[Round "6"]
[White "Vlasova, Olesia"]
[Black "Abdinova, Narmin"]
[Result "1-0"]
[ECO "C68"]
[WhiteElo "1639"]
[BlackElo "1320"]
[Annotator "NA"]
[PlyCount "165"]
[EventDate "2018.11.04"]
[EventType "swiss"]
[EventCountry "ESP"]
[SourceTitle "playchess.com"]
[Source "ChessBase"]
[SourceQuality "1"]
[TimeControl "40/5400+30:1800+30"]

1. e4 {[%emt 0:00:00]} e5 {[%emt 0:00:00]} 2. Nf3 {[%emt 0:00:00]} Nc6 {[%emt 0:00:00]} 3. Bb5 {[%emt 0:00:16]} a6 {[%emt 0:00:02]} 4. Bxc6 {[%emt 0:00:08]} dxc6 {[%emt 0:00:45]} 5. O-O {[%emt 0:00:12]} Bg4 {[%emt 0:01:19]} 6. h3 {[%emt 0:00:06]} Bxf3 {[%emt 0:01:54]} 7. Qxf3 {[%emt 0:00:19]} Bd6 {[%emt 0:00:28]} 8. d3 {[%emt 0:01:19]} Qf6 {[%emt 0:00:48]} 9. Qe2 {[%emt 0:01:46]} Ne7 {[%emt 0:00:42]} 10. Nd2 {[%emt 0:00:54]} Ng6 {[%emt 0:00:46]} 11. Nc4 O-O {[%emt 0:02:00]} 12. Qg4 {[%emt 0:06:00]} h6 {[%emt 0:07:39]} 13. Bd2 {[%emt 0:03:45]} Qe6 {[%emt 0:04:18]} 14. Qxe6 {[%emt 0:06:01]} fxe6 {[%emt 0:01:58]} 15. Bc3 {[%emt 0:04:52]} Rad8 {[%emt 0:07:26]} 16. Rad1 {[%emt 0:03:25]} b6 {[%emt 0:05:07]} 17. g3 {[%emt 0:04:02]} c5 {[%emt 0:01:18]} 18. Kg2 {[%emt 0:01:51]} b5 {[%emt 0:03:15]} 19. Na5 {[%emt 0:01:17]} Ne7 {[%emt 0:01:31]} 20. Bd2 {[%emt 0:00:37]} Kh7 {[%emt 0:04:30]} 21. Be3 {[%emt 0:00:13]} Rb8 {[%emt 0:01:34]} 22. Rb1 {[%emt 0:00:54]} b4 {[%emt 0:02:32]} 23. Nb3 {[%emt 0:00:35]} Rb5 {[%emt 0:01:58]} 24. Rfc1 {[%emt 0:04:40]} Nc6 {[%emt 0:01:58]} 25. c4 {[%emt 0:05:58]} bxc3 {[%emt 0:00:31]} 26. bxc3 {[%emt 0:01:04]} Rfb8 {[%emt 0:01:49]} 27. Ra1 {[%emt 0:02:24]} a5 {[%emt 0:02:55]} 28. c4 {[%emt 0:00:24]} R5b6 {[%emt 0:01:17]} 29. Nxc5 {[%emt 0:03:41]} Bxc5 {[%emt 0:00:27]} 30. Bxc5 {[%emt 0:00:05]} Rb2 {[%emt 0:00:21]} 31. Rc3 {[%emt 0:12:52]} Nd4 {[%emt 0:01:28]} 32. Bxd4 {[%emt 0:01:14]} exd4 {[%emt 0:00:05]} 33. Ra3 {[%emt 0:00:15]} Rd2 {[%emt 0:02:21]} 34. Rxa5 {[%emt 0:02:36]} Rbb2 {[%emt 0:00:31]} 35. Rf1 {[%emt 0:01:08]} Rxd3 {[%emt 0:00:18]} 36. Rc5 {[%emt 0:07:00]} Rxa2 {[%emt 0:01:40]} 37. Rxc7 {[%emt 0:00:11]} Re2 {[%emt 0:00:34]} 38. Rd7 {[%emt 0:01:58]} e5 {[%emt 0:02:01]} 39. Rb1 {[%emt 0:01:42]} Rdd2 {[%emt 0:00:28]} 40. Rf7 {[%emt 0:00:00]} Rb2 {[%emt 0:00:00]} 41. Rxb2 {[%emt 0:00:46]} Rxb2 {[%emt 0:01:59]} 42. Rf5 {[%emt 0:00:18]} Rc2 {[%emt 0:00:24]} 43. Rxe5 {[%emt 0:00:15]} Rxc4 {[%emt 0:00:13]} 44. Rd5 {[%emt 0:00:12]} Kg6 {[%emt 0:00:43]} 45. Kf3 {[%emt 0:00:51]} Kf6 {[%emt 0:00:45]} 46. Rd6+ {[%emt 0:02:05]} Ke5 {[%emt 0:00:56]} 47. Rd5+ {[%emt 0:00:31]} Ke6 {[%emt 0:00:20]} 48. Kf4 {[%emt 0:00:54]} Rc2 {[%emt 0:01:23]} 49. f3 {[%emt 0:01:02]} Rd2 {[%emt 0:00:05]} 50. Kg4 {[%emt 0:00:41]} Rd1 {[%emt 0:00:05]} 51. f4 {[%emt 0:02:30]} d3 {[%emt 0:00:17]} 52. f5+ {[%emt 0:01:53]} Ke7 {[%emt 0:00:55]} 53. Kf4 {[%emt 0:04:22]} d2 {[%emt 0:00:15]} 54. Ke5 {[%emt 0:00:22]} Rg1 {[%emt 0:01:01]} 55. Rxd2 {[%emt 0:00:14]} Rxg3 {[%emt 0:00:05]} 56. Ra2 {[%emt 0:00:30]} Rxh3 {[%emt 0:01:41]} 57. Ra7+ {[%emt 0:00:03]} Kf8 {[%emt 0:00:16]} 58. Ke6 {[%emt 0:00:11]} Kg8 {[%emt 0:00:14]} 59. Ra8+ {[%emt 0:00:38]} Kh7 {[%emt 0:00:06]} 60. e5 {[%emt 0:01:32]} Rb3 {[%emt 0:00:28]} 61. Rd8 {[%emt 0:01:54]} h5 {[%emt 0:00:26]} 62. f6 {[%emt 0:01:28]} gxf6 {[%emt 0:00:10]} 63. exf6 {[%emt 0:03:59]} Kg6 {[%emt 0:00:22]} 64. Rg8+ {[%emt 0:00:11]} Kh6 {[%emt 0:00:11]} 65. f7 {[%emt 0:00:27]} Rb6+ {[%emt 0:00:03]} 66. Kd5 {[%emt 0:00:22]} Rb5+ {[%emt 0:00:05]} 67. Kc4 {[%emt 0:00:05]} Rf5 {[%emt 0:00:09]} 68. f8=Q+ {[%emt 0:00:09]} Rxf8 {[%emt 0:00:05]} 69. Rxf8 {[%emt 0:00:06]} Kg5 {[%emt 0:00:01]} 70. Kd3 {[%emt 0:00:32]} Kg4 {[%emt 0:00:44]} 71. Ke2 {[%emt 0:00:07]} Kg3 {[%emt 0:00:06]} 72. Kf1 {[%emt 0:00:09]} h4 {[%emt 0:00:12]} 73. Kg1 {[%emt 0:00:04]} h3 {[%emt 0:00:06]} 74. Rg8+ {[%emt 0:00:06]} Kh4 {[%emt 0:00:10]} 75. Kh2 {[%emt 0:00:03]} Kh5 {[%emt 0:00:06]} 76. Kxh3 {[%emt 0:00:05]} Kh6 {[%emt 0:00:05]} 77. Kg4 {[%emt 0:00:11]} Kh7 {[%emt 0:00:03]} 78. Rg5 {[%emt 0:00:08]} Kh6 {[%emt 0:00:04]} 79. Kf5 {[%emt 0:00:05]} Kh7 {[%emt 0:00:06]} 80. Rg1 {[%emt 0:00:04]} Kh6 {[%emt 0:00:12]} 81. Rg2 {[%emt 0:00:02]} Kh7 {[%emt 0:00:12]} 82. Kf6 {[%emt 0:00:05]} Kh8 {[%emt 0:00:07]} 83. Kf7 1-0

[Event "FIDE WCCC G10 2018"]
[Site "Santiago de Compostela"]
[Date "2018.11.10"]
[Round "6"]
[White "Rouda Essa, Alserkal"]
[Black "Shefali A N"]
[Result "1/2-1/2"]
[ECO "C93"]
[WhiteElo "1635"]
[BlackElo "1258"]
[Annotator "NA"]
[PlyCount "89"]
[EventDate "2018.11.04"]
[EventType "swiss"]
[EventCountry "ESP"]
[SourceTitle "playchess.com"]
[Source "ChessBase"]
[SourceQuality "1"]
[TimeControl "40/5400+30:1800+30"]

1. e4 {[%emt 0:00:00]} e5 {[%emt 0:00:00]} 2. Nf3 {[%emt 0:00:24]} Nc6 {[%emt 0:00:00]} 3. Bb5 {[%emt 0:00:27]} a6 {[%emt 0:00:06]} 4. Ba4 {[%emt 0:00:47]} Nf6 {[%emt 0:00:24]} 5. O-O {[%emt 0:00:40]} Be7 {[%emt 0:00:22]} 6. Re1 {[%emt 0:00:56]} b5 {[%emt 0:00:37]} 7. Bb3 {[%emt 0:00:30]} d6 {[%emt 0:00:33]} 8. c3 {[%emt 0:00:41]} O-O {[%emt 0:00:16]} 9. h3 {[%emt 0:00:44]} h6 {[%emt 0:00:16]} 10. d4 {[%emt 0:01:40]} Bb7 {[%emt 0:01:09]} 11. Nbd2 {[%emt 0:01:21]} Re8 {[%emt 0:01:36]} 12. Nf1 {[%emt 0:00:41]} Bf8 {[%emt 0:01:14]} 13. Ng3 {[%emt 0:00:13]} g6 {[%emt 0:05:40]} 14. Nh2 {[%emt 0:29:49]} Bg7 {[%emt 0:01:58]} 15. Bc2 {[%emt 0:01:57]} h5 {[%emt 0:02:30]} 16. Nf3 {[%emt 0:17:16]} Nh7 {[%emt 0:08:32]} 17. Be3 {[%emt 0:03:08]} Qe7 {[%emt 0:02:09]} 18. Qd2 {[%emt 0:04:36]} Na5 {[%emt 0:03:12]} 19. b3 {[%emt 0:00:17]} Qf6 {[%emt 0:02:40]} 20. d5 {[%emt 0:04:32]} Bc8 {[%emt 0:01:33]} 21. Ng5 {[%emt 0:02:03]} Qe7 {[%emt 0:01:40]} 22. Nxh7 {[%emt 0:01:15]} Kxh7 {[%emt 0:00:09]} 23. a4 {[%emt 0:02:35]} Bd7 {[%emt 0:01:18]} 24. c4 {[%emt 0:02:57]} Nb7 {[%emt 0:00:30]} 25. cxb5 {[%emt 0:00:44]} axb5 {[%emt 0:01:20]} 26. a5 {[%emt 0:02:11]} Nc5 {[%emt 0:01:38]} 27. Reb1 {[%emt 0:01:33]} Na6 {[%emt 0:01:03]} 28. Re1 {[%emt 0:04:36]} Rec8 {[%emt 0:03:45]} 29. Rad1 {[%emt 0:01:57]} b4 {[%emt 0:02:34]} 30. Qe2 {[%emt 0:07:21]} Nc5 {[%emt 0:01:58]} 31. Ra1 {[%emt 0:00:12]} Rcb8 {[%emt 0:00:15]} 32. Bd2 {[%emt 0:01:35]} Bc8 {[%emt 0:07:36]} 33. Reb1 {[%emt 0:02:49]} Qd7 {[%emt 0:02:56]} 34. Rb2 {[%emt 0:01:10]} Qb5 {[%emt 0:01:16]} 35. Rba2 {[%emt 0:00:43]} Qxe2 {[%emt 0:00:53]} 36. Nxe2 {[%emt 0:00:04]} Ba6 {[%emt 0:00:21]} 37. Nc1 {[%emt 0:00:16]} Bh6 {[%emt 0:00:49]} 38. Bxh6 {[%emt 0:00:15]} Kxh6 {[%emt 0:00:08]} 39. f3 {[%emt 0:00:07]} Kg5 {[%emt 0:01:04]} 40. Kf2 {[%emt 0:00:00]} f5 {[%emt 0:00:00]} 41. Ke3 {[%emt 0:01:21]} f4+ {[%emt 0:01:48]} 42. Kf2 {[%emt 0:00:10]} Kf6 {[%emt 0:00:51]} 43. Ke1 {[%emt 0:03:00]} g5 {[%emt 0:01:14]} 44. Kf2 {[%emt 0:00:20]} Kg6 {[%emt 0:04:14]} 45. Bb1 {[%emt 0:00:40]} 1/2-1/2

[Event "FIDE WCCC G10 2018"]
[Site "Santiago de Compostela"]
[Date "2018.11.10"]
[Round "6"]
[White "Nguyen, Ha Khanh Linh"]
[Black "Ho, Ngoc Vy"]
[Result "1-0"]
[ECO "D43"]
[WhiteElo "1449"]
[BlackElo "1275"]
[Annotator "NA"]
[PlyCount "69"]
[EventDate "2018.11.04"]
[EventType "swiss"]
[EventCountry "ESP"]
[SourceTitle "playchess.com"]
[Source "ChessBase"]
[SourceQuality "1"]
[TimeControl "40/5400+30:1800+30"]

1. d4 d5 {[%emt 0:00:00]} 2. c4 {[%emt 0:00:00]} c6 {[%emt 0:00:26]} 3. Nc3 {[%emt 0:00:02]} Nf6 {[%emt 0:00:59]} 4. Nf3 {[%emt 0:00:09]} e6 {[%emt 0:02:12]} 5. Bg5 {[%emt 0:00:22]} Be7 {[%emt 0:01:04]} 6. e3 {[%emt 0:00:26]} Nbd7 {[%emt 0:00:56]} 7. Qc2 {[%emt 0:00:33]} O-O {[%emt 0:01:43]} 8. cxd5 {[%emt 0:00:27]} exd5 {[%emt 0:03:18]} 9. Bd3 {[%emt 0:00:08]} h6 {[%emt 0:01:41]} 10. Bxf6 {[%emt 0:01:08]} Nxf6 {[%emt 0:03:21]} 11. O-O-O {[%emt 0:05:17]} Re8 {[%emt 0:03:25]} 12. Rdg1 {[%emt 0:02:57]} Bd6 {[%emt 0:05:59]} 13. h3 {[%emt 0:09:07]} h5 14. g4 {[%emt 0:07:29]} Qe7 {[%emt 0:12:04]} 15. gxh5 {[%emt 0:01:51]} Nxh5 {[%emt 0:02:35]} 16. Rg5 {[%emt 0:02:05]} Qf6 {[%emt 0:07:54]} 17. Bf5 {[%emt 0:14:54]} Qh6 {[%emt 0:04:51]} 18. Rhg1 {[%emt 0:09:00]} Be7 {[%emt 0:04:23]} 19. R5g4 {[%emt 0:03:19]} Bf8 {[%emt 0:03:51]} 20. Bxc8 {[%emt 0:05:34]} Raxc8 {[%emt 0:09:47]} 21. Qf5 {[%emt 0:01:48]} Rcd8 {[%emt 0:02:48]} 22. Rh4 {[%emt 0:04:57]} g6 {[%emt 0:04:32]} 23. Qxh5 {[%emt 0:01:43]} Qg7 {[%emt 0:00:17]} 24. Qg4 {[%emt 0:01:25]} b5 {[%emt 0:00:46]} 25. Ng5 {[%emt 0:02:53]} Qf6 {[%emt 0:01:15]} 26. Qf3 {[%emt 0:03:47]} Qe7 {[%emt 0:01:22]} 27. Rf4 {[%emt 0:03:08]} f5 {[%emt 0:01:35]} 28. Qg3 {[%emt 0:03:01]} Qf6 {[%emt 0:01:09]} 29. Nf3 {[%emt 0:02:45]} Bh6 {[%emt 0:00:45]} 30. Rh4 {[%emt 0:01:56]} Kg7 {[%emt 0:04:44]} 31. Ne5 {[%emt 0:01:37]} g5 {[%emt 0:01:27]} 32. f4 {[%emt 0:00:39]} g4 {[%emt 0:04:08]} 33. hxg4 {[%emt 0:00:30]} fxg4 {[%emt 0:01:00]} 34. Qxg4+ {[%emt 0:01:13]} Kh7 {[%emt 0:00:13]} 35. Qg6+ {[%emt 0:00:19]} 1-0

[Event "FIDE WCCC G10 2018"]
[Site "Santiago de Compostela"]
[Date "2018.11.10"]
[Round "6"]
[White "Sureda Gonzalez, Cristina"]
[Black "Yildiz, Elif Zeren"]
[Result "0-1"]
[ECO "B06"]
[WhiteElo "1422"]
[BlackElo "1448"]
[Annotator "NA RC"]
[PlyCount "152"]
[EventDate "2018.11.04"]
[EventType "swiss"]
[EventCountry "ESP"]
[SourceTitle "playchess.com"]
[Source "ChessBase"]
[SourceQuality "1"]
[TimeControl "40/5400+30:1800+30"]

1. e4 {[%emt 0:00:00]} d6 {[%emt 0:00:00]} 2. d4 {[%emt 0:00:02]} g6 {[%emt 0:00:00]} 3. Nf3 {[%emt 0:01:25]} Bg7 {[%emt 0:00:00]} 4. Nc3 {[%emt 0:01:06]} a6 {[%emt 0:00:03]} 5. Be2 {[%emt 0:00:58]} Nd7 {[%emt 0:01:07]} 6. Be3 {[%emt 0:01:28]} b5 {[%emt 0:00:59]} 7. a3 {[%emt 0:03:46]} Bb7 {[%emt 0:01:36]} 8. O-O {[%emt 0:01:13]} e6 {[%emt 0:00:33]} 9. Nd2 {[%emt 0:03:04]} Ne7 {[%emt 0:04:30]} 10. Bf3 {[%emt 0:01:24]} O-O {[%emt 0:02:30]} 11. Nb3 {[%emt 0:03:49]} Rc8 {[%emt 0:02:39]} 12. Qd2 {[%emt 0:02:09]} c5 {[%emt 0:06:08]} 13. dxc5 {[%emt 0:02:05]} Nxc5 {[%emt 0:00:34]} 14. Nxc5 {[%emt 0:01:01]} dxc5 {[%emt 0:00:32]} 15. Rfd1 {[%emt 0:03:11]} c4 {[%emt 0:06:10]} 16. Bh6 {[%emt 0:07:37]} Qc7 {[%emt 0:05:51]} 17. Bf4 {[%emt 0:08:23]} e5 {[%emt 0:08:46]} 18. Be3 {[%emt 0:02:06]} Rfd8 {[%emt 0:00:30]} 19. Qe2 {[%emt 0:00:37]} h6 {[%emt 0:03:03]} 20. g3 {[%emt 0:05:19]} Kh7 {[%emt 0:04:43]} 21. Bg2 {[%emt 0:01:53]} Ba8 {[%emt 0:02:57]} 22. f4 {[%emt 0:01:54]} exf4 {[%emt 0:02:57]} 23. gxf4 {[%emt 0:00:38]} Qc6 {[%emt 0:04:40]} 24. Bh3 {[%emt 0:08:16]} Rb8 {[%emt 0:03:46]} 25. Bd2 {[%emt 0:05:59]} Rd6 {[%emt 0:07:09]} 26. Rf1 {[%emt 0:02:58]} Rbd8 {[%emt 0:02:26]} 27. Rad1 {[%emt 0:07:46]} a5 {[%emt 0:04:23]} 28. Bg2 {[%emt 0:01:31]} R6d7 {[%emt 0:02:13]} 29. Be1 {[%emt 0:06:22]} b4 {[%emt 0:05:59]} 30. axb4 {[%emt 0:00:29]} axb4 {[%emt 0:00:07]} 31. Nd5 {[%emt 0:00:51]} Nxd5 {[%emt 0:01:13]} 32. exd5 {[%emt 0:00:01]} Qb5 {[%emt 0:00:10]} 33. b3 {[%emt 0:00:43]} Bxd5 {[%emt 0:01:42]} 34. Bxd5 {[%emt 0:00:11]} Rxd5 {[%emt 0:00:07]} 35. Rxd5 {[%emt 0:00:30]} Qxd5 {[%emt 0:00:29]} 36. Qxc4 {[%emt 0:00:40]} Bd4+ {[%emt 0:01:31]} 37. Bf2 {[%emt 0:00:42]} Bxf2+ {[%emt 0:00:01]} 38. Rxf2 {[%emt 0:00:11]} Qxc4 {[%emt 0:00:07]} 39. bxc4 {[%emt 0:00:04]} Rc8 {[%emt 0:00:04]} 40. f5 {[%emt 0:00:00]} Rxc4 {[%emt 0:00:00]} 41. fxg6+ {[%emt 0:05:27]} Kxg6 {[%emt 0:01:07]} 42. Kg2 {[%emt 0:01:39]} f5 {[%emt 0:00:22]} 43. Kf3 {[%emt 0:01:03]} Kf6 {[%emt 0:01:43]} 44. Ke3 {[%emt 0:01:45]} Ke5 {[%emt 0:00:19]} 45. Kd3 {[%emt 0:00:55]} Rc3+ {[%emt 0:00:04]} 46. Kd2 {[%emt 0:00:28]} Rh3 {[%emt 0:01:24]} 47. Re2+ {[%emt 0:01:13]} Kd4 {[%emt 0:00:25]} 48. Rf2 {[%emt 0:00:31]} Rh4 {[%emt 0:01:10]} 49. Re2 {[%emt 0:01:28]} Re4 {[%emt 0:01:42]} 50. Rf2 {[%emt 0:00:31]} f4 {[%emt 0:00:48]} 51. Rf3 {[%emt 0:01:04]} Kc4 {[%emt 0:02:50]} 52. Rf2 {[%emt 0:01:38]} Rd4+ {[%emt 0:01:47]} 53. Kc1 {[%emt 0:00:41]} h5 {[%emt 0:00:10]} 54. Rf3 {[%emt 0:00:35]} Re4 {[%emt 0:02:33]} 55. Kd2 {[%emt 0:01:58]} Kd4 {[%emt 0:01:20]} 56. Rb3 {[%emt 0:01:15]} Ke5 {[%emt 0:00:50]} 57. Rh3 {[%emt 0:01:28]} Kf5 {[%emt 0:01:34]} 58. Rb3 {[%emt 0:03:36]} Kg4 {[%emt 0:02:41]} 59. h3+ {[%emt 0:00:47]} Kg5 {[%emt 0:00:06]} 60. c3 {[%emt 0:01:58]} Re3 {[%emt 0:05:37]} 61. Rxb4 {[%emt 0:03:02]} Rxh3 {[%emt 0:00:30]} 62. c4 {[%emt 0:00:52]} Re3 {[%emt 0:00:08]} 63. c5 {[%emt 0:01:32]} Re8 {[%emt 0:00:40]} 64. c6 {[%emt 0:00:35]} Rc8 {[%emt 0:00:43]} 65. Rc4 {[%emt 0:00:46]} Kg4 {[%emt 0:00:24]} 66. Ke2 {[%emt 0:00:38]} Kg3 {[%emt 0:00:21]} 67. Kf1 {[%emt 0:02:08]} h4 {[%emt 0:01:08]} 68. Rc3+ {[%emt 0:00:45]} f3 {[%emt 0:00:13]} 69. Kg1 {[%emt 0:00:36]} h3 {[%emt 0:00:26]} 70. c7 {[%emt 0:00:53]} h2+ {[%emt 0:01:28]} 71. Kh1 {[%emt 0:00:31]} Re8 {[%emt 0:02:09]} 72. Rc1 {[%emt 0:01:19]} f2 {[%emt 0:00:24]} 73. Rc3+ {[%emt 0:01:46]} Kf4 {[%emt 0:00:57]} 74. Rc4+ {[%emt 0:00:58]} Kg5 {[%emt 0:01:11]} 75. Rc5+ {[%emt 0:00:29]} Kf6 {[%emt 0:00:28]} 76. Rc6+ {[%emt 0:00:49]} Ke5 0-1

[Event "FIDE WCCC G10 2018"]
[Site "Santiago de Compostela"]
[Date "2018.11.10"]
[Round "6"]
[White "Ciarletta, Iris"]
[Black "Zakirova, Aisha"]
[Result "0-1"]
[ECO "B23"]
[WhiteElo "1381"]
[BlackElo "1678"]
[Annotator "NA"]
[PlyCount "116"]
[EventDate "2018.11.04"]
[EventType "swiss"]
[EventCountry "ESP"]
[SourceTitle "playchess.com"]
[Source "ChessBase"]
[SourceQuality "1"]
[TimeControl "40/5400+30:1800+30"]

1. e4 {[%emt 0:00:00]} c5 {[%emt 0:00:00]} 2. Nc3 {[%emt 0:00:01]} d6 {[%emt 0:00:00]} 3. f4 {[%emt 0:00:45]} Nc6 {[%emt 0:00:25]} 4. Nf3 {[%emt 0:00:50]} g6 {[%emt 0:01:11]} 5. Bc4 {[%emt 0:01:15]} Bg7 {[%emt 0:01:14]} 6. O-O {[%emt 0:02:13]} Nf6 {[%emt 0:02:22]} 7. d3 {[%emt 0:02:00]} O-O {[%emt 0:04:50]} 8. a3 {[%emt 0:02:45]} Bg4 {[%emt 0:11:52]} 9. Bd5 {[%emt 0:04:00]} Nxd5 {[%emt 0:07:53]} 10. Nxd5 {[%emt 0:00:53]} Nd4 {[%emt 0:01:49]} 11. c3 {[%emt 0:02:00]} Nxf3+ {[%emt 0:07:47]} 12. gxf3 {[%emt 0:00:46]} Bd7 {[%emt 0:05:12]} 13. Kh1 {[%emt 0:03:11]} f5 {[%emt 0:04:16]} 14. c4 {[%emt 0:03:43]} fxe4 {[%emt 0:06:33]} 15. fxe4 {[%emt 0:01:24]} Bh3 {[%emt 0:01:11]} 16. Rg1 {[%emt 0:01:47]} Kh8 {[%emt 0:08:24]} 17. Qf3 {[%emt 0:02:37]} Bd7 {[%emt 0:03:48]} 18. Qg2 {[%emt 0:02:25]} e6 {[%emt 0:02:58]} 19. Nc3 {[%emt 0:01:37]} Qf6 {[%emt 0:07:56]} 20. Be3 {[%emt 0:04:27]} Bc6 {[%emt 0:02:32]} 21. Qg5 {[%emt 0:01:27]} Qxg5 {[%emt 0:07:59]} 22. fxg5 {[%emt 0:01:06]} Rf3 {[%emt 0:01:32]} 23. Rae1 {[%emt 0:04:52]} Raf8 {[%emt 0:01:10]} 24. Rg3 {[%emt 0:04:54]} R3f7 {[%emt 0:08:18]} 25. Kg2 {[%emt 0:00:24]} Bd4 {[%emt 0:00:42]} 26. Bxd4+ {[%emt 0:00:46]} cxd4 {[%emt 0:00:06]} 27. Nd1 {[%emt 0:01:10]} Ba4 {[%emt 0:00:49]} 28. Kh3 {[%emt 0:00:35]} Bc2 {[%emt 0:00:26]} 29. b4 {[%emt 0:01:10]} Rf1 {[%emt 0:00:34]} 30. Rg1 {[%emt 0:02:42]} Rxg1 {[%emt 0:00:20]} 31. Rxg1 {[%emt 0:00:16]} Bxd3 {[%emt 0:00:32]} 32. Nb2 {[%emt 0:00:46]} Bxe4 {[%emt 0:00:27]} 33. Re1 {[%emt 0:00:32]} d5 {[%emt 0:00:31]} 34. cxd5 {[%emt 0:00:25]} Bxd5 {[%emt 0:00:19]} 35. Rd1 {[%emt 0:00:38]} e5 {[%emt 0:00:22]} 36. Nd3 {[%emt 0:00:42]} e4 {[%emt 0:00:31]} 37. Nc5 {[%emt 0:00:34]} d3 {[%emt 0:00:09]} 38. Nxd3 {[%emt 0:00:40]} Rf3+ {[%emt 0:00:17]} 39. Kg2 {[%emt 0:00:48]} exd3 {[%emt 0:00:18]} 40. Kg1 {[%emt 0:00:00]} Kg7 {[%emt 0:00:00]} 41. a4 {[%emt 0:01:46]} Bb3 {[%emt 0:01:06]} 42. Rd2 {[%emt 0:00:27]} Bc2 {[%emt 0:00:19]} 43. Kg2 {[%emt 0:00:58]} Rf5 {[%emt 0:00:19]} 44. h4 {[%emt 0:01:20]} Rf4 {[%emt 0:00:12]} 45. Kg3 {[%emt 0:01:08]} Rxb4 {[%emt 0:00:16]} 46. a5 {[%emt 0:00:21]} Ra4 {[%emt 0:00:12]} 47. Rf2 {[%emt 0:00:57]} Rxa5 {[%emt 0:00:26]} 48. Kg4 Rf5 49. Rd2 {[%emt 0:04:29]} Re5 {[%emt 0:03:20]} 50. Kf3 {[%emt 0:01:04]} b5 {[%emt 0:00:18]} 51. Kf2 {[%emt 0:00:21]} b4 {[%emt 0:00:08]} 52. Kf3 {[%emt 0:00:16]} b3 {[%emt 0:00:06]} 53. Kf2 {[%emt 0:00:13]} b2 {[%emt 0:00:09]} 54. Kf3 {[%emt 0:00:23]} b1=Q {[%emt 0:00:16]} 55. Rg2 {[%emt 0:00:41]} Qe1 {[%emt 0:00:16]} 56. Rh2 {[%emt 0:00:41]} Rf5+ {[%emt 0:00:31]} 57. Kg4 {[%emt 0:01:34]} Qe4+ {[%emt 0:00:31]} 58. Kg3 {[%emt 0:00:29]} Qf3# {[%emt 0:00:01]} 0-1

[Event "FIDE WCCC G10 2018"]
[Site "Santiago de Compostela"]
[Date "2018.11.10"]
[Round "6"]
[White "Elangovan, Ramya"]
[Black "Anupam M Sreekumar"]
[Result "1-0"]
[ECO "C47"]
[WhiteElo "1352"]
[BlackElo "1615"]
[Annotator "NA"]
[PlyCount "75"]
[EventDate "2018.11.04"]
[EventType "swiss"]
[EventCountry "ESP"]
[SourceTitle "playchess.com"]
[Source "ChessBase"]
[SourceQuality "1"]
[TimeControl "40/5400+30:1800+30"]

1. e4 {[%emt 0:00:00]} e5 {[%emt 0:00:00]} 2. Nf3 {[%emt 0:00:00]} Nc6 {[%emt 0:00:05]} 3. Nc3 {[%emt 0:00:00]} Nf6 {[%emt 0:00:12]} 4. d4 {[%emt 0:00:07]} exd4 {[%emt 0:00:50]} 5. Nxd4 {[%emt 0:00:10]} Bb4 {[%emt 0:00:24]} 6. Nxc6 {[%emt 0:00:42]} bxc6 {[%emt 0:00:19]} 7. Bd3 {[%emt 0:00:16]} O-O {[%emt 0:00:13]} 8. O-O {[%emt 0:00:26]} d5 {[%emt 0:00:12]} 9. exd5 {[%emt 0:00:46]} cxd5 {[%emt 0:00:12]} 10. h3 {[%emt 0:00:16]} Be6 {[%emt 0:02:52]} 11. Bg5 {[%emt 0:01:58]} Be7 {[%emt 0:01:26]} 12. Re1 {[%emt 0:01:54]} Rb8 {[%emt 0:01:35]} 13. Rb1 {[%emt 0:02:17]} c5 {[%emt 0:01:51]} 14. Qf3 {[%emt 0:08:28]} h6 {[%emt 0:08:07]} 15. Bh4 {[%emt 0:02:17]} Rb4 {[%emt 0:02:32]} 16. Bg3 {[%emt 0:02:23]} Qd7 {[%emt 0:12:26]} 17. Be5 {[%emt 0:06:22]} Rd8 {[%emt 0:10:32]} 18. a3 {[%emt 0:05:03]} Rb6 {[%emt 0:01:39]} 19. Bf1 {[%emt 0:08:59]} d4 {[%emt 0:02:45]} 20. Ne4 {[%emt 0:01:55]} Nxe4 {[%emt 0:05:40]} 21. Qxe4 {[%emt 0:00:57]} Bf5 {[%emt 0:01:47]} 22. Qe2 {[%emt 0:04:26]} Re6 {[%emt 0:02:26]} 23. Qd2 {[%emt 0:02:51]} Rg6 {[%emt 0:00:34]} 24. Kh1 {[%emt 0:02:27]} Qd5 {[%emt 0:02:35]} 25. Kh2 {[%emt 0:07:03]} Be4 {[%emt 0:02:51]} 26. Bg3 {[%emt 0:01:21]} Bd6 {[%emt 0:07:44]} 27. Bxd6 {[%emt 0:01:31]} Qxd6+ {[%emt 0:00:54]} 28. Kh1 {[%emt 0:00:49]} Qd5 {[%emt 0:03:47]} 29. f3 {[%emt 0:01:36]} Bf5 {[%emt 0:00:21]} 30. Bd3 {[%emt 0:02:48]} Rdd6 {[%emt 0:04:48]} 31. Re8+ {[%emt 0:02:15]} Kh7 {[%emt 0:00:09]} 32. Rbe1 {[%emt 0:00:10]} Bxd3 {[%emt 0:03:03]} 33. Qxd3 {[%emt 0:01:01]} c4 {[%emt 0:02:30]} 34. Qe4 {[%emt 0:02:24]} d3 {[%emt 0:06:55]} 35. cxd3 {[%emt 0:01:17]} cxd3 {[%emt 0:00:45]} 36. Rd1 {[%emt 0:00:38]} Qg5 {[%emt 0:08:15]} 37. Qg4 {[%emt 0:01:14]} Qa5 {[%emt 0:03:05]} 38. Qf4 {[%emt 0:01:58]} 1-0